bitfinex-derivatives/quotes_ETHF0:USTF0_20240831
["timestamp","ask_amount","ask_price","bid_price","bid_amount"]
[1725112305997,3.2078,2524.1,2524.0,0.24363249]
[1725112306709,3.2078,2524.1,2524.0,0.00593249]
[1725112307204,11.6269677,2524.1,2524.0,0.00593249]
[1725112307407,11.9975677,2524.1,2524.0,0.00593249]
[1725112308106,11.7598777,2524.1,2524.0,0.00593249]
[1725112308300,11.9975677,2524.1,2524.0,0.00593249]
[1725112309199,0.23772,2523.9,2523.5,0.3533]
[1725112309399,0.7545,2523.8,2523.5,0.3533]
[1725112309702,4.38104418,2523.8,2523.5,0.59105]
[1725112309907,4.38104418,2523.8,2523.5,0.3533]
[1725112310112,4.38104418,2523.8,2523.5,0.59105]
[1725112311017,4.38104418,2523.8,2523.5,0.3533]
[1725112311201,4.38104418,2523.8,2523.7,0.23773]
[1725112311401,4.38104418,2523.8,2523.6,0.23773]
[1725112311703,4.38104418,2523.8,2523.5,0.59105]
[1725112312412,4.61877418,2523.8,2523.5,0.3533]
[1725112312612,3.2078,2523.6,2523.5,0.3533]
[1725112313807,0.23772,2523.8,2523.5,4.3157]
[1725112314006,0.23772,2523.8,2523.5,0.3533]
[1725112314207,4.31685522,2523.7,2523.5,0.3533]
[1725112314414,4.69825522,2523.7,2523.5,0.3533]
[1725112315403,3.2078,2523.6,2523.5,0.3533]
[1725112315812,3.5664,2523.6,2523.5,0.3533]
[1725112316006,3.9416,2523.6,2523.5,0.3533]
[1725112317620,7.904,2523.6,2523.4,0.3778]
[1725112317807,8.23790621,2523.6,2523.4,0.3778]
[1725112318203,8.67169472,2523.6,2523.3,0.3709]
[1725112318408,2.63775,2523.5,2523.3,0.3709]
[1725112318614,2.4,2523.5,2523.3,0.3709]
[1725112318810,4.4110977,2523.4,2523.3,0.3709]
[1725112320117,8.6120577,2523.4,2523.2,0.3734]
[1725112320312,3.2078,2523.3,2523.2,0.3734]
[1725112320719,7.72135809,2523.3,2523.2,0.3734]
[1725112321216,7.72135809,2523.3,2523.1,0.7336]
[1725112322115,2.949,2523.7,2523.5,0.23774]
[1725112322310,6.3945,2524.1,2523.6,0.7176]
[1725112322615,4.50338211,2524.0,2523.6,0.7176]
[1725112322811,4.50338211,2524.0,2523.7,0.388]
[1725112323212,7.45238211,2524.0,2523.7,0.388]
[1725112324708,4.50338211,2524.0,2523.7,0.388]
[1725112324909,4.50338211,2524.0,2523.9,0.23771]
[1725112325309,3.2078,2524.1,2523.9,0.23771]
[1725112325722,3.2078,2524.1,2524.0,0.6069]
[1725112325914,3.2078,2524.1,2524.0,0.3692]
[1725112326615,7.50029677,2524.1,2523.7,0.388]
[1725112326921,7.50029677,2524.1,2523.8,0.3692]
[1725112327822,7.50029677,2524.1,2523.8,0.60692]
[1725112328914,7.50029677,2524.1,2523.8,0.3692]
[1725112330108,7.73799677,2524.1,2523.8,0.3692]
[1725112330326,2.4,2523.9,2523.8,0.3692]
[1725112330821,2.63771,2523.9,2523.8,0.3692]
[1725112331037,2.63771,2523.9,2523.6,0.3585]
[1725112331211,7.13641993,2523.9,2523.6,0.3585]
[1725112332017,6.89869993,2523.9,2523.6,0.3585]
[1725112332218,6.89869993,2523.9,2523.6,0.7338]
[1725112333126,6.89869993,2523.9,2523.8,0.23772]
[1725112333127,4.49869993,2523.9,2523.8,0.23772]
[1725112333320,6.1568,2524.1,2523.8,0.23772]
[1725112333724,4.40169538,2524.0,2523.9,0.3795]
[1725112336624,4.40169538,2524.0,2523.5,3.2078]
[1725112336924,4.40169538,2524.0,2523.7,0.3854]
[1725112337128,4.40169538,2524.0,2523.8,0.382]
[1725112338126,4.63939538,2524.0,2523.7,0.3854]
[1725112338423,3.1601,2523.9,2523.5,3.44554]
[1725112338624,3.39781,2523.9,2523.5,3.2078]
[1725112338822,4.70908805,2523.8,2523.5,3.2078]
[1725112339429,4.94680805,2523.8,2523.5,3.2078]
[1725112339624,4.94681805,2523.8,2523.3,1.01137]
[1725112339928,7.91688805,2523.8,2523.3,0.7736]
[1725112340117,8.15461805,2523.8,2523.3,1.01136]
[1725112340931,0.23773,2523.7,2523.3,0.7736]
[1725112341122,0.23774,2523.6,2523.2,4.158]
[1725112341324,5.0465953,2523.6,2523.2,4.8895]
[1725112341524,0.3723,2523.5,2523.2,4.8895]
[1725112341723,0.3723,2523.5,2523.2,0.7315]
[1725112342326,3.5801,2523.5,2523.2,0.7315]
[1725112342528,4.2870202,2523.4,2523.2,0.7315]
[1725112343531,4.2870202,2523.4,2523.2,1.1046]
[1725112347330,4.2870202,2523.4,2523.0,0.23779]
[1725112347529,0.7608,2523.3,2523.0,0.60919]
[1725112347929,4.3138774,2523.2,2523.0,0.60919]
[1725112348528,4.3138774,2523.2,2522.6,6.864]
[1725112348529,4.3138774,2523.2,2522.6,4.158]
[1725112348736,2.4,2522.8,2522.5,0.98024]
[1725112349033,3.2078,2522.9,2522.6,0.3722]
[1725112349737,3.5747,2522.9,2522.6,0.3722]
[1725112349940,3.2078,2522.9,2522.6,0.3722]
[1725112351230,2.4,2522.8,2522.6,0.3722]
[1725112351437,7.1699109,2522.8,2522.6,0.3722]
[1725112351642,0.3699,2522.7,2522.6,0.3722]
[1725112351836,6.9321009,2522.8,2522.6,0.3722]
[1725112353945,6.5525009,2522.8,2522.6,0.3722]
[1725112355439,6.5525009,2522.8,2522.6,0.61003]
[1725112356949,6.5525009,2522.8,2522.6,0.3722]
[1725112358041,1.1104,2522.7,2522.6,0.3722]
[1725112359141,5.31222,2522.7,2522.2,4.39587]
[1725112359339,5.6078,2522.6,2522.3,0.59516]
[1725112359642,4.43878223,2522.5,2522.3,0.59516]
[1725112360636,5.6078,2522.6,2522.3,0.59516]
[1725112360637,3.2078,2522.6,2522.3,0.59516]
[1725112361039,4.55254498,2522.5,2522.3,0.3573]
[1725112362243,4.55254498,2522.5,2521.6,11.022]
[1725112362244,6.3648,2522.4,2521.6,11.022]
[1725112362440,3.2078,2522.2,2521.9,0.3752]
[1725112362637,8.07378013,2522.3,2521.9,0.61309]
[1725112362831,3.2078,2522.2,2521.9,0.61309]
[1725112363139,7.66990473,2522.2,2521.9,0.61309]
[1725112363342,2.4,2522.1,2521.9,0.3752]
[1725112365338,4.31290765,2522.0,2521.9,0.3752]
[1725112369144,4.31290765,2522.0,2521.7,0.97561]
[1725112369343,4.31290765,2522.0,2521.7,1.33111]
[1725112369545,1.108,2521.9,2521.7,1.33111]
[1725112370448,1.108,2521.9,2521.7,1.0932]
[1725112371437,3.508,2521.9,2521.7,1.0932]
[1725112372947,3.508,2521.9,2521.6,0.23792]
[1725112373152,4.24584069,2521.8,2521.6,0.60762]
[1725112373353,4.24584069,2521.8,2521.6,0.60763]
[1725112373548,4.24584069,2521.8,2521.7,0.23792]
[1725112373737,2.4,2522.1,2521.7,0.23792]
[1725112373944,2.63788,2522.1,2521.8,0.7338]
[1725112374139,4.25520363,2522.0,2521.8,0.7338]
[1725112374446,4.25520363,2522.0,2521.9,0.3697]
[1725112375148,4.25520363,2522.0,2521.5,3.2078]
[1725112375343,4.25520363,2522.0,2521.3,4.158]
[1725112375344,3.2078,2521.7,2521.6,0.23793]
[1725112375548,3.2078,2521.7,2521.4,1.1]
[1725112375549,6.65520363,2522.0,2521.8,0.2379]
[1725112375743,2.4,2522.0,2521.8,0.2379]
[1725112376142,2.4,2522.0,2521.4,0.7303]
[1725112376450,2.4,2522.0,2521.7,0.23791]
[1725112376653,2.4,2522.0,2521.8,0.7477]
[1725112377037,2.4,2522.0,2521.8,0.98561]
[1725112377254,2.4,2522.0,2521.8,0.9856]
[1725112377555,2.4,2522.0,2521.9,0.2379]
[1725112377750,9.66404436,2522.2,2521.9,0.2379]
[1725112378139,4.48412587,2522.1,2521.9,0.2379]
[1725112378341,4.48412587,2522.1,2521.8,0.7477]
[1725112378342,4.48412587,2522.1,2521.8,0.9856]
[1725112379256,4.48412587,2522.1,2521.9,0.2379]
[1725112379655,4.48412587,2522.1,2522.0,0.23789]
[1725112379952,4.48412587,2522.1,2521.9,0.23789]
[1725112380542,4.48412587,2522.1,2522.0,0.23789]
[1725112380744,4.48412587,2522.1,2521.9,0.23789]
[1725112381349,4.48412587,2522.1,2522.0,0.23789]
[1725112381549,4.48412587,2522.1,2521.8,0.7477]
[1725112381750,4.48412587,2522.1,2522.0,0.23789]
[1725112382451,5.48412587,2522.1,2521.9,0.23789]
[1725112382846,5.48412587,2522.1,2521.8,0.7477]
[1725112382847,5.48412587,2522.1,2521.8,0.9856]
[1725112383046,4.48412587,2522.1,2522.0,0.23789]
[1725112383249,3.21374436,2522.2,2522.1,0.23788]
[1725112383250,0.00594436,2522.2,2522.1,0.23788]
[1725112383569,0.00594436,2522.2,2522.1,10.20268]
[1725112384248,0.00594436,2522.2,2522.1,4.20268]
[1725112384646,0.00594436,2522.2,2522.1,10.20268]
[1725112385242,4.2078,2522.8,2522.7,0.23782]
[1725112385754,4.2078,2522.8,2522.3,4.158]
[1725112385953,1.0,2522.6,2522.3,4.158]
[1725112386158,1.0,2522.6,2522.3,4.39586]
[1725112386349,2.76814436,2522.7,2522.3,4.39586]
[1725112386857,2.76814436,2522.7,2522.4,0.3571]
[1725112387152,3.00597436,2522.7,2522.4,0.3571]
[1725112387355,2.76814436,2522.7,2522.4,0.59495]
[1725112387654,2.76814436,2522.7,2522.4,0.3571]
[1725112387855,2.40594436,2522.7,2522.5,0.23784]
[1725112388054,0.00594436,2522.7,2522.6,0.23783]
[1725112388251,0.00594436,2522.7,2522.6,4.20183]
[1725112388451,0.00594436,2522.7,2522.6,10.20183]
[1725112388957,0.00594436,2522.7,2522.6,4.20183]
[1725112393860,0.00594436,2522.7,2522.6,10.20183]
[1725112395157,0.00594436,2522.7,2522.6,10.93043]
[1725112398760,0.00594436,2522.7,2522.6,11.52502]
[1725112399363,1.1528,2523.3,2523.2,0.23778]
[1725112399565,0.3786,2523.3,2523.2,0.23778]
[1725112399762,5.6078,2523.4,2522.7,0.59457]
[1725112400066,0.3521,2523.3,2523.2,0.23777]
[1725112401771,3.2078,2523.4,2523.3,0.23777]
[1725112406465,3.2078,2523.4,2523.0,0.7243]
[1725112406466,3.2078,2523.4,2523.2,0.23777]
[1725112407968,5.84556,2523.4,2523.0,0.23779]
[1725112408479,1.0,2523.3,2523.0,0.23779]
[1725112408671,0.7475,2523.2,2522.9,4.3958]
[1725112408874,1.1232,2523.2,2522.9,4.3958]
[1725112409273,1.1232,2523.2,2523.0,0.23779]
[1725112409469,3.2078,2523.1,2522.9,4.158]
[1725112409675,1.1232,2523.2,2522.9,4.158]
[1725112409976,1.1232,2523.2,2523.0,0.23779]
[1725112411780,1.1232,2523.2,2522.9,4.3958]
[1725112413276,1.1232,2523.2,2523.0,0.2378]
[1725112413481,1.1232,2523.2,2522.9,4.3958]
[1725112413688,1.1232,2523.2,2522.9,4.158]
[1725112414094,1.1232,2523.2,2522.9,4.3958]
[1725112414397,1.1232,2523.2,2522.9,0.2378]
[1725112414993,1.1232,2523.2,2522.8,0.23781]
[1725112415485,1.1232,2523.2,2522.9,0.2378]
[1725112416786,1.1232,2523.2,2522.8,0.23781]
[1725112417092,1.1232,2523.2,2522.8,0.61121]
[1725112421283,1.1232,2523.2,2522.9,0.2378]
[1725112421690,1.1232,2523.2,2522.5,6.864]
[1725112421691,3.2078,2523.1,2522.3,3.2078]
[1725112421883,1.3645,2523.0,2522.4,1.1052]
[1725112422090,3.44564,2522.6,2522.4,1.1052]
[1725112422298,3.2078,2522.6,2522.4,1.1052]
[1725112422491,1.1241,2522.7,2522.4,1.34305]
[1725112423296,1.1241,2522.7,2522.4,1.1052]
[1725112423491,1.1241,2522.7,2522.4,0.3572]
[1725112424294,1.36192,2522.7,2522.4,0.3572]
[1725112424991,3.2078,2522.6,2522.4,0.3572]
[1725112426000,3.2078,2522.6,2522.3,0.23786]
[1725112426194,3.2078,2522.6,2522.4,0.3896]
[1725112427594,3.44563,2522.6,2522.4,0.3896]
[1725112427800,3.44564,2522.6,2522.4,0.3896]
[1725112428099,0.23787,2522.3,2522.1,0.00594436]
[1725112428701,3.44567,2522.3,2522.1,0.00594436]
[1725112428897,3.80467,2522.3,2522.1,0.00594436]
[1725112429397,4.19037,2522.3,2522.1,0.00594436]
[1725112429601,0.23787,2522.2,2522.1,0.00594436]
[1725112430390,5.20267,2522.2,2522.1,0.00594436]
[1725112430592,4.26294579,2522.2,2522.1,0.00594436]
[1725112430796,0.359,2522.3,2522.1,0.00594436]
[1725112431103,0.359,2522.3,2522.1,0.36354436]
[1725112432396,0.3799,2522.5,2522.2,0.23787]
[1725112432702,4.42222977,2522.4,2522.3,0.3787]
[1725112433798,9.38702977,2522.4,2522.3,0.3787]
[1725112434100,9.74822977,2522.4,2522.3,0.3787]
[1725112434302,9.74822977,2522.4,2522.1,0.60142436]
[1725112434599,5.78342977,2522.4,2522.1,0.60142436]
[1725112435006,5.78342977,2522.4,2522.2,0.3746]
[1725112436897,5.78342977,2522.4,2522.2,0.61247]
[1725112437206,5.78342977,2522.4,2522.2,0.3746]
[1725112437699,1.0,2522.4,2522.2,0.3746]
[1725112437903,1.0,2522.4,2522.3,0.3745]
[1725112438800,3.44564,2522.6,2522.3,0.3745]
[1725112438801,3.2078,2522.6,2522.3,0.3745]
[1725112439009,3.2078,2522.6,2522.5,0.23784]
[1725112439499,3.2078,2522.6,2522.5,4.20184]
[1725112440301,1.0,2523.0,2522.7,0.23782]
[1725112440611,1.0,2523.0,2522.5,7.1718]
[1725112440612,1.0,2523.0,2522.8,0.60151]
[1725112441193,1.0,2523.0,2522.9,0.3857]
[1725112442108,1.0,2523.0,2522.9,0.6235]
[1725112442293,3.2078,2523.1,2522.9,0.6235]
[1725112442494,3.2078,2523.1,2522.9,0.3857]
[1725112443305,1.2378,2523.0,2522.9,0.3857]
[1725112443602,1.0,2523.0,2522.6,0.3555]
[1725112443800,1.0,2523.0,2522.7,0.23782]
[1725112444200,1.2378,2523.0,2522.7,0.23782]
[1725112444403,1.2378,2523.0,2522.6,0.96823]
[1725112444404,0.3737,2522.9,2522.6,0.96823]
[1725112444801,0.61151,2522.9,2522.6,0.7304]
[1725112445104,3.2078,2522.8,2522.6,0.7304]
[1725112445294,0.23784,2522.6,2522.4,4.158]
[1725112445494,1.23783,2522.7,2522.4,4.9024]
[1725112445709,1.23783,2522.7,2522.4,5.14025]
[1725112445910,3.5618,2522.8,2522.4,5.9024]
[1725112446107,0.354,2522.8,2522.6,0.23783]
[1725112446304,0.354,2522.8,2522.4,5.9024]
[1725112446305,0.354,2522.8,2522.7,0.3658]
[1725112446506,0.354,2522.8,2522.5,0.23784]
[1725112446805,0.354,2522.8,2522.5,0.60364]
[1725112447200,3.9667,2522.7,2522.4,4.9024]
[1725112447401,8.66417427,2522.7,2522.4,5.14024]
[1725112448295,7.66744427,2522.7,2522.5,0.23784]
[1725112448803,0.23781,2522.9,2522.5,0.23784]
[1725112448999,0.3617,2522.9,2522.5,0.23784]
[1725112449214,0.23782,2522.8,2522.5,0.23784]
[1725112450213,4.44562,2522.8,2522.4,0.98225]
[1725112450410,0.23782,2522.7,2522.4,0.7444]
[1725112450708,0.23783,2522.6,2522.4,0.7444]
[1725112450900,0.97873,2522.6,2522.4,0.7444]
[1725112452306,0.23784,2522.5,2522.4,0.7444]
[1725112452502,0.97874,2522.6,2522.2,4.76167]
[1725112452703,0.23784,2522.5,2522.3,0.3594]
[1725112452902,0.7409,2522.6,2522.3,0.3594]
[1725112453207,0.23785,2522.5,2522.3,0.3594]
[1725112453514,4.69290522,2522.5,2522.3,0.3594]
[1725112454212,0.23785,2522.4,2522.3,0.3594]
[1725112454514,7.66285522,2522.5,2522.3,0.3594]
[1725112454515,8.25260522,2522.5,2522.3,0.3594]
[1725112454913,0.23786,2522.4,2522.2,0.3888]
[1725112455213,0.23786,2522.4,2522.2,0.7621]
[1725112457704,0.23786,2522.3,2522.1,0.00594436]
[1725112459613,0.23787,2522.2,2522.1,0.00594436]
[1725112459918,0.23787,2522.3,2522.1,0.00594436]
[1725112460314,0.23787,2522.2,2522.1,0.00594436]
[1725112461709,3.44567,2522.2,2522.1,0.00594436]
[1725112462105,4.20237,2522.2,2522.1,0.00594436]
[1725112466316,8.16717,2522.2,2522.1,0.00594436]
[1725112467222,4.20237,2522.2,2522.1,0.00594436]
[1725112469127,12.50824261,2522.2,2522.1,0.00594436]
[1725112471626,18.50824261,2522.2,2522.1,0.00594436]
[1725112472025,0.23791,2521.8,2521.7,0.7132]
[1725112472221,3.2078,2521.8,2521.7,0.7132]
[1725112473527,0.2379,2521.9,2521.7,0.7132]
[1725112473926,4.30640086,2521.8,2521.7,0.7132]
[1725112476233,8.50991086,2521.8,2521.7,0.3612]
[1725112476434,9.25331086,2521.8,2521.7,0.3612]
[1725112476640,4.709,2521.8,2521.7,0.3612]
[1725112476843,9.11355035,2521.8,2521.7,0.3612]
[1725112477339,9.35146035,2521.8,2521.7,0.3612]
[1725112477546,9.11355035,2521.8,2521.7,0.3612]
[1725112477747,8.37015035,2521.8,2521.7,0.3612]
[1725112477941,12.57795035,2521.8,2521.5,0.00594436]
[1725112478142,8.85027035,2521.8,2521.6,1.0956]
[1725112478446,0.23792,2521.7,2521.6,1.0956]
[1725112478638,8.85026035,2521.8,2521.6,1.0956]
[1725112478840,4.30724697,2521.7,2521.6,1.0956]
[1725112479042,1.23791,2521.8,2521.6,1.0956]
[1725112479344,0.23791,2521.8,2521.6,1.0956]
[1725112480347,4.2528803,2521.7,2521.6,1.0956]
[1725112481341,0.23793,2521.6,2521.5,0.00594436]
[1725112481536,1.59793,2521.6,2521.5,0.00594436]
[1725112483151,1.23793,2521.6,2521.5,0.00594436]
[1725112483350,1.0,2521.6,2521.5,0.00594436]
[1725112483547,1.0,2521.6,2521.5,0.75084436]
[1725112485051,3.44571,2521.8,2521.5,0.98877436]
[1725112485238,4.2078,2521.8,2521.5,0.75084436]
[1725112485442,4.59395535,2521.6,2521.5,0.75084436]
[1725112485636,4.59395535,2521.7,2521.5,0.75084436]
[1725112485844,0.23793,2521.7,2521.5,0.75084436]
[1725112486043,4.83188535,2521.7,2521.5,0.75084436]
[1725112487551,1.0,2521.6,2521.5,0.75084436]
[1725112488245,5.58818979,2521.6,2521.5,0.75084436]
[1725112488743,5.58818979,2521.6,2521.5,0.00594436]
[1725112489147,4.58818979,2521.6,2521.5,0.24388436]
[1725112489549,4.31569184,2521.7,2521.6,0.23793]
[1725112489853,4.2078,2521.8,2521.6,0.94243]
[1725112490150,4.31569184,2521.7,2521.6,0.94243]
[1725112490646,3.2078,2521.8,2521.6,0.94243]
[1725112491052,3.2078,2521.8,2521.7,0.23792]
[1725112493145,3.2078,2521.8,2521.6,0.94242]
[1725112493448,3.2078,2521.8,2521.7,0.23792]
[1725112493654,4.59047074,2521.7,2521.6,0.94242]
[1725112494156,3.2078,2521.8,2521.7,0.23792]
[1725112494651,7.77402851,2521.8,2521.7,0.23792]
[1725112496253,8.77402851,2521.8,2521.6,0.7045]
[1725112496453,9.01193851,2521.8,2521.6,0.7045]
[1725112496847,8.77402851,2521.8,2521.6,0.7045]
[1725112497745,9.15462851,2521.8,2521.6,0.7045]
[1725112498452,13.12022851,2521.8,2521.5,0.00594436]
[1725112498653,1.0,2521.6,2521.5,0.00594436]
[1725112498954,5.54163384,2521.6,2521.5,0.00594436]
[1725112499156,5.77956384,2521.6,2521.5,0.00594436]
[1725112499452,5.54163384,2521.6,2521.5,0.00594436]
[1725112499851,9.74516384,2521.6,2521.5,0.00594436]
[1725112500544,9.50723384,2521.6,2521.5,0.00594436]
[1725112501153,9.74516384,2521.6,2521.5,0.00594436]
[1725112506059,15.74516384,2521.6,2521.5,0.00594436]
[1725112507457,15.76536384,2521.6,2521.5,0.00594436]
[1725112508354,0.23795,2521.4,2521.2,0.3839]
[1725112508658,8.53986365,2521.3,2521.1,0.3586]
[1725112508858,8.90586365,2521.3,2521.1,0.7124]
[1725112509161,8.90586365,2521.3,2521.1,0.95037]
[1725112509374,8.54066365,2521.3,2521.1,0.95037]
[1725112509553,7.80366365,2521.3,2521.2,0.23797]
[1725112509858,0.0202,2521.6,2521.4,0.23795]
[1725112510259,0.0202,2521.6,2521.5,0.3802]
[1725112510755,4.44203919,2521.6,2521.5,0.3802]
[1725112510956,4.44203919,2521.6,2521.5,0.61814]
[1725112511252,4.44203919,2521.6,2521.5,0.59794]
[1725112511463,0.0404,2521.6,2521.5,0.59794]
[1725112512361,0.0606,2521.6,2521.5,0.59794]
[1725112512563,0.0606,2521.6,2521.5,0.57774]
[1725112513268,0.0606,2521.6,2521.5,0.55754]
[1725112515563,1.0606,2521.6,2521.5,0.55754]
[1725112518072,5.57687197,2521.6,2521.5,0.55754]
[1725112518481,1.0606,2521.6,2521.5,0.55754]
[1725112519774,0.0606,2521.6,2521.5,4.52314]
[1725112524772,0.0606,2521.6,2521.5,0.55754]
[1725112524983,0.0606,2521.6,2521.5,4.52314]
[1725112527184,0.0606,2521.6,2521.5,0.55754]
[1725112528372,5.6203878,2521.6,2521.5,0.3196]
[1725112528572,5.9988878,2521.6,2521.5,0.3196]
[1725112530576,5.6203878,2521.6,2521.5,0.3196]
[1725112531876,5.8583178,2521.6,2521.5,0.3196]
[1725112532081,5.6203878,2521.6,2521.5,0.3196]
[1725112532281,5.8583178,2521.6,2521.5,0.3196]
[1725112532482,5.6203878,2521.6,2521.5,0.3196]
[1725112533379,13.0317178,2521.6,2521.3,0.62715]
[1725112533597,0.7673,2521.5,2521.3,0.62715]
[1725112533990,4.47806827,2521.4,2521.3,0.62715]
[1725112534183,4.47806827,2521.4,2521.3,0.3892]
[1725112534380,4.47806827,2521.4,2521.2,3.80926]
[1725112535394,0.23796,2521.3,2521.2,0.3635]
[1725112535681,0.23796,2521.3,2521.0,0.3651]
[1725112535682,8.41216,2521.3,2521.0,0.3651]
[1725112535889,0.7503,2521.2,2521.0,0.3651]
[1725112536284,4.15793544,2521.1,2521.0,0.3651]
[1725112536487,5.15793544,2521.1,2521.0,0.3651]
[1725112537776,5.15793544,2521.1,2520.5,4.4024375]
[1725112537777,9.12433544,2521.1,2520.5,3.2078]
[1725112537983,9.12433544,2521.1,2520.1,1.03934111]
[1725112537984,7.60074874,2520.6,2520.1,1.03934111]
[1725112538182,7.60074874,2520.6,2520.1,0.3607]
[1725112538183,1.0,2520.4,2520.1,0.3607]
[1725112538380,1.0,2520.2,2520.1,0.3607]
[1725112539175,1.0,2520.2,2519.3,1.03934111]
[1725112539387,1.0,2520.1,2519.8,0.3878]
[1725112539597,1.0,2519.9,2519.5,0.23812]
[1725112539780,1.0,2519.9,2519.5,0.62592]
[1725112539979,4.33286403,2519.8,2519.5,0.3878]
[1725112540886,4.33286403,2519.8,2519.5,0.62592]
[1725112541388,1.23807,2520.1,2519.5,0.3878]
[1725112541575,1.23807,2520.1,2519.6,0.385]
[1725112541884,4.18280484,2519.9,2519.6,0.62312]
[1725112542083,4.18280484,2520.0,2519.6,0.385]
[1725112542293,3.2078,2519.9,2519.6,0.385]
[1725112542489,4.82596075,2520.0,2519.6,0.385]
[1725112542880,1.0,2519.9,2519.6,0.385]
[1725112543081,5.58787075,2519.9,2519.6,0.385]
[1725112543487,5.96757075,2519.9,2519.6,0.385]
[1725112543677,9.17537075,2519.9,2519.6,0.385]
[1725112544680,8.17537075,2519.9,2519.6,0.385]
[1725112544881,9.17537075,2519.9,2519.6,0.385]
[1725112545280,8.17537075,2519.9,2519.6,0.385]
[1725112545493,9.17537075,2519.9,2519.6,0.385]
[1725112546288,9.17537075,2519.9,2519.5,0.3878]
[1725112546289,0.2381,2519.8,2519.5,0.3878]
[1725112546483,0.2381,2519.8,2519.3,0.23814]
[1725112546484,1.0,2519.7,2519.3,0.23814]
[1725112546684,1.0,2519.5,2519.3,0.23814]
[1725112547388,1.0,2519.5,2519.2,0.60445]
[1725112547783,1.0,2519.5,2519.3,0.23814]
[1725112549390,1.0,2519.5,2519.2,0.3663]
[1725112549391,1.0,2519.5,2519.2,0.60445]
[1725112549600,1.0,2519.5,2519.3,0.23814]
[1725112551485,4.45163612,2519.4,2519.2,0.3663]
[1725112551685,4.45163612,2519.4,2519.3,0.23814]
[1725112551885,1.0,2519.5,2519.4,0.23814]
[1725112552296,1.0,2519.5,2519.3,0.23814]
[1725112552680,1.0,2519.5,2519.2,0.3663]
[1725112552681,4.17732815,2519.4,2519.2,0.3663]
[1725112553879,4.17732815,2519.4,2519.3,0.23814]
[1725112554294,7.21649,2519.9,2519.3,3.9696]
[1725112554295,1.0,2519.8,2519.3,3.9696]
[1725112554494,6.2238,2519.9,2519.8,0.2381]
[1725112554895,6.2238,2519.9,2519.7,0.2381]
[1725112555187,1.0,2519.8,2519.7,0.2381]
[1725112555587,5.51245766,2519.8,2519.7,0.2381]
[1725112556388,5.51245766,2519.8,2519.5,0.7189]
[1725112556589,1.0,2519.6,2519.4,3.2078]
[1725112556891,1.0,2519.6,2519.4,0.23814]
[1725112556892,5.4192699,2519.5,2519.4,0.23814]
[1725112557285,9.3880699,2519.5,2519.2,0.23815]
[1725112557499,4.2078,2519.3,2519.2,0.23815]
[1725112557791,4.2078,2519.3,2519.1,0.23816]
[1725112557993,9.01450875,2519.3,2518.9,0.97858]
[1725112558196,1.0,2519.0,2518.8,3.2078]
[1725112558494,7.77635875,2518.9,2518.5,0.60571]
[1725112558703,7.77635875,2518.9,2518.5,0.3675]
[1725112559001,1.0,2518.8,2518.6,0.61111]
[1725112559299,5.27337072,2518.7,2517.9,3.2078]
[1725112559487,5.27337072,2518.7,2518.4,0.23823]
[1725112559687,0.3661,2518.8,2518.4,0.23823]
[1725112559688,4.59884031,2518.8,2518.4,0.23823]
[1725112559888,5.23274031,2518.6,2518.4,0.23823]
[1725112560299,0.3661,2518.8,2518.4,0.23823]
[1725112560300,6.63274031,2518.7,2518.4,0.23823]
[1725112560499,4.23274031,2518.5,2518.4,0.23823]
[1725112560696,4.23274031,2518.5,2518.3,0.23823]
[1725112560889,4.44541281,2518.6,2518.3,0.23823]
[1725112561189,3.2078,2518.6,2518.2,0.3729]
[1725112561391,8.00761281,2518.6,2518.2,0.3729]
[1725112561591,2.4,2518.5,2518.1,0.23826]
[1725112561988,4.15859041,2518.4,2518.1,0.23826]
[1725112562502,4.15859041,2518.4,2518.2,0.23825]
[1725112563104,4.15859041,2518.4,2518.0,4.5467]
[1725112563295,4.15859041,2518.4,2518.0,0.3887]
[1725112563494,3.2078,2518.6,2518.4,0.23822]
[1725112563698,3.2078,2518.6,2518.5,0.3844]
[1725112564106,7.69685742,2518.6,2518.3,0.23823]
[1725112564305,7.69685742,2518.6,2518.2,0.62264]
[1725112564605,7.93506742,2518.6,2518.0,0.23826]
[1725112564806,0.3848,2518.5,2518.0,0.23826]
[1725112565004,2.63825,2518.2,2517.9,3.5922]
[1725112565203,3.44606,2518.1,2517.6,0.2383]
[1725112565395,2.4,2518.0,2517.6,0.2383]
[1725112565803,2.4,2518.0,2517.5,3.2078]
[1725112565804,4.50963694,2517.9,2517.5,3.2078]
[1725112566303,4.50963694,2517.9,2517.8,0.23829]
[1725112566510,8.6798,2518.4,2518.1,0.23825]
[1725112566698,8.6798,2518.4,2517.6,0.3649]
[1725112566904,4.19601953,2518.3,2518.2,0.23824]
[1725112569102,3.2078,2518.4,2518.3,0.23824]
[1725112570008,2.4,2518.6,2517.9,1.35579]
[1725112570009,5.472,2518.6,2517.9,1.35579]
[1725112570306,5.472,2518.6,2518.5,0.23822]
[1725112570307,2.4,2518.6,2518.5,0.23822]
[1725112570710,4.41235547,2518.6,2518.5,0.23822]
[1725112571013,5.9655,2518.8,2518.7,0.2382]
[1725112571415,10.37785547,2518.8,2518.7,0.2382]
[1725112572121,10.37785547,2518.8,2518.6,0.23821]
[1725112572305,10.37785547,2518.8,2518.5,0.23822]
[1725112572511,2.4,2518.6,2518.4,0.23822]
[1725112572709,2.4,2518.6,2518.3,0.61013]
[1725112572912,4.12939083,2518.5,2518.4,0.23822]
[1725112574418,4.12939083,2518.5,2518.3,0.61013]
[1725112574717,4.12939083,2518.5,2518.4,0.23823]
[1725112575019,5.9655,2518.8,2518.3,0.3719]
[1725112575208,5.9655,2518.8,2518.6,0.23821]